bitfinex-derivatives/quotes_BTCF0:USTF0_20250811
["timestamp","ask_amount","ask_price","bid_price","bid_amount"]
[1754885250856,1.39901031,121760.0,121750.0,0.17190789]
[1754885251160,1.93272155,121760.0,121750.0,0.17190789]
[1754885251856,1.93272155,121760.0,121750.0,0.12402789]
[1754885252463,1.93272155,121760.0,121750.0,0.17190789]
[1754885253875,1.66586593,121760.0,121750.0,0.17190789]
[1754885254269,1.93272155,121760.0,121750.0,0.17190789]
[1754885255275,1.14400155,121760.0,121750.0,0.17190789]
[1754885255575,1.93064155,121760.0,121750.0,0.17190789]
[1754885257574,1.14400155,121760.0,121750.0,0.17190789]
[1754885257776,1.92916155,121760.0,121750.0,0.09415119]
[1754885258080,0.082133,121750.0,121740.0,0.04526]
[1754885258381,0.0821397,121740.0,121730.0,0.04526]
[1754885258676,0.70979532,121740.0,121730.0,0.04526]
[1754885258982,0.94030959,121740.0,121730.0,0.27399672]
[1754885259181,1.72560959,121740.0,121730.0,0.00224562]
[1754885259368,1.72550959,121740.0,121730.0,2e-08]
[1754885260072,0.1148333,121720.0,121710.0,0.66125732]
[1754885260269,2.66312892,121720.0,121710.0,0.66136121]
[1754885260472,2.66312892,121720.0,121710.0,0.8662116]
[1754885260679,2.3962733,121720.0,121710.0,0.8662116]
[1754885260874,2.66312892,121720.0,121710.0,0.8662116]
[1754885261066,2.66322892,121720.0,121710.0,0.8663116]
[1754885262081,2.66322892,121720.0,121710.0,0.67601428]
[1754885262978,2.66422892,121720.0,121710.0,0.67601428]
[1754885263276,2.3642933,121720.0,121710.0,1.00756148]
[1754885263478,2.3639733,121720.0,121710.0,1.08972148]
[1754885263783,2.3639733,121720.0,121710.0,0.82286586]
[1754885263984,2.3639733,121720.0,121710.0,0.82686586]
[1754885264578,1.84598892,121720.0,121710.0,0.74470586]
[1754885264783,1.84598892,121720.0,121710.0,0.44712428]
[1754885264784,2.66034892,121720.0,121710.0,0.44712428]
[1754885265084,2.66034892,121720.0,121710.0,0.68001428]
[1754885265385,2.63042892,121720.0,121710.0,0.68001428]
[1754885265583,2.62942892,121720.0,121710.0,0.68001428]
[1754885265785,2.65934892,121720.0,121710.0,0.68001428]
[1754885266184,2.66034892,121720.0,121710.0,0.68001428]
[1754885266684,2.3934933,121720.0,121710.0,0.68001428]
[1754885266987,2.66034892,121720.0,121710.0,0.68001428]
[1754885269182,2.66034892,121720.0,121710.0,0.60540428]
[1754885269388,2.66034892,121720.0,121710.0,0.68001428]
[1754885270783,2.92720454,121720.0,121710.0,0.20905428]
[1754885270984,3.28740454,121720.0,121710.0,0.20905428]
[1754885271185,2.50356454,121720.0,121710.0,0.12690864]
[1754885271489,3.28736454,121720.0,121710.0,0.12690864]
[1754885273190,3.02050892,121720.0,121710.0,0.12690864]
[1754885273990,3.28736454,121720.0,121710.0,0.12290864]
[1754885274187,3.45168454,121720.0,121710.0,0.12290864]
[1754885274387,0.1447668,121700.0,121690.0,0.04526]
[1754885274595,1.91594242,121700.0,121690.0,0.04526]
[1754885274789,1.6490868,121700.0,121690.0,0.25096332]
[1754885274989,1.6490868,121700.0,121690.0,0.25496332]
[1754885275292,1.6539668,121700.0,121690.0,0.25503879]
[1754885275487,1.92092242,121700.0,121690.0,0.25503879]
[1754885275793,1.92092242,121700.0,121690.0,0.25603879]
[1754885275993,1.92092242,121700.0,121690.0,0.25703879]
[1754885276994,1.92092242,121700.0,121690.0,0.25503879]
[1754885277192,1.92192242,121700.0,121690.0,0.41331879]
[1754885277387,1.92192242,121700.0,121690.0,0.25503879]
[1754885279496,1.92192242,121700.0,121690.0,0.30017879]
[1754885279698,1.92192242,121700.0,121690.0,0.45845879]
[1754885279898,0.0821938,121660.0,121650.0,0.6722899]
[1754885280194,0.43125272,121660.0,121640.0,0.3608]
[1754885280390,1.0349728,121650.0,121640.0,0.47096]
[1754885280696,1.0349728,121650.0,121640.0,0.59457946]
[1754885280897,1.0350928,121650.0,121640.0,0.6767521]
[1754885281098,1.0350928,121650.0,121640.0,0.75906474]
[1754885281292,1.0351928,121650.0,121640.0,0.75906474]
[1754885281596,1.0321928,121650.0,121640.0,0.82466817]
[1754885281994,1.0321928,121650.0,121640.0,0.74246087]
[1754885282192,1.0321928,121650.0,121640.0,0.82466817]
[1754885282498,1.0281928,121650.0,121640.0,0.82866817]
[1754885282996,1.0281928,121650.0,121640.0,0.83366817]
[1754885283597,1.0281928,121650.0,121640.0,0.74646087]
[1754885283896,1.0281928,121650.0,121640.0,0.74946087]
[1754885284798,1.2030428,121650.0,121640.0,0.74946087]
[1754885285001,1.2030428,121650.0,121640.0,0.74646087]
[1754885285292,1.0281928,121650.0,121640.0,0.82866817]
[1754885285497,1.0299128,121650.0,121640.0,0.74346087]
[1754885285894,1.0309128,121650.0,121640.0,0.74656087]
[1754885286399,1.0309128,121650.0,121640.0,0.82876817]
[1754885287000,1.2684228,121650.0,121640.0,0.74656087]
[1754885287198,1.5053328,121650.0,121640.0,0.74656087]
[1754885287499,1.0306728,121650.0,121640.0,0.74656087]
[1754885287997,1.1976528,121650.0,121640.0,0.82876817]
[1754885288899,1.1976528,121650.0,121640.0,0.74246087]
[1754885289098,1.3183428,121650.0,121640.0,0.82466817]
[1754885289892,0.79146,121650.0,121640.0,1.45232379]
[1754885290087,0.0011,121650.0,121640.0,1.45232379]
[1754885290294,1.21772119,121670.0,121660.0,0.5562338]
[1754885290591,2.00720119,121670.0,121660.0,0.82308942]
[1754885290794,2.29455119,121670.0,121660.0,0.6787469]
[1754885290988,2.29455119,121670.0,121660.0,0.68949332]
[1754885291290,2.13272681,121670.0,121660.0,0.52646952]
[1754885291501,2.92314681,121670.0,121660.0,0.20471952]
[1754885292595,2.92414681,121670.0,121660.0,0.20471952]
[1754885293098,2.92714681,121670.0,121660.0,0.20471952]
[1754885293699,2.92714681,121670.0,121660.0,0.25361952]
[1754885294090,2.92714681,121670.0,121660.0,0.20471952]
[1754885294994,2.92714681,121670.0,121660.0,0.68949332]
[1754885295193,2.92714681,121670.0,121660.0,0.76095332]
[1754885295402,2.13682681,121670.0,121660.0,0.76095332]
[1754885295600,2.92598681,121670.0,121660.0,0.76100148]
[1754885296399,2.92598681,121670.0,121660.0,0.67880768]
[1754885297205,2.92598681,121670.0,121660.0,0.76100148]
[1754885297501,2.92598681,121670.0,121660.0,0.67880768]
[1754885298801,2.92598681,121670.0,121660.0,0.60734768]
[1754885298998,2.13682681,121670.0,121660.0,0.20476768]
[1754885299200,2.92522681,121670.0,121660.0,0.20476768]
[1754885300298,2.65837119,121670.0,121660.0,0.20886768]
[1754885300499,2.92522681,121670.0,121660.0,0.20886768]
[1754885302006,2.92222681,121670.0,121660.0,0.20886768]
[1754885303206,2.92222681,121670.0,121660.0,0.25776768]
[1754885304107,2.92122681,121670.0,121660.0,0.25776768]
[1754885304407,2.92222681,121670.0,121660.0,0.25776768]
[1754885304607,2.92222681,121670.0,121660.0,0.20886768]
[1754885305310,2.92422681,121670.0,121660.0,0.20886768]
[1754885305809,2.65737119,121670.0,121660.0,0.20886768]
[1754885306108,2.92422681,121670.0,121660.0,0.20886768]
[1754885307106,2.92422681,121670.0,121660.0,0.25776768]
[1754885307912,2.92222681,121670.0,121660.0,0.25776768]
[1754885308211,2.92322681,121670.0,121660.0,0.25776768]
[1754885310007,2.92322681,121670.0,121660.0,0.20886768]
[1754885310210,2.13482681,121670.0,121660.0,0.20886768]
[1754885310415,2.91902681,121670.0,121660.0,0.20886768]
[1754885310713,2.91890681,121670.0,121660.0,0.20886768]
[1754885311210,2.91790681,121670.0,121660.0,0.20886768]
[1754885311415,2.91890681,121670.0,121660.0,0.20886768]
[1754885311614,2.91858681,121670.0,121660.0,0.20886768]
[1754885312012,2.91958681,121670.0,121660.0,0.20886768]
[1754885313713,2.13582681,121670.0,121660.0,0.20886768]
[1754885313914,2.65289119,121670.0,121660.0,0.20886768]
[1754885314115,2.13582681,121670.0,121660.0,0.20476768]
[1754885314307,2.91962681,121670.0,121660.0,0.20476768]
[1754885314507,2.91962681,121670.0,121660.0,0.25366768]
[1754885314710,2.91974681,121670.0,121660.0,0.25366768]
[1754885314914,2.91974681,121670.0,121660.0,0.20476768]
[1754885317106,2.91878681,121670.0,121660.0,0.20476768]
[1754885317816,2.91858681,121670.0,121660.0,0.20476768]
[1754885318705,0.2049406,121650.0,121640.0,0.00010534]
[1754885318905,1.66190622,121650.0,121640.0,0.00010534]
[1754885319116,1.66190622,121650.0,121640.0,0.20489593]
[1754885319612,1.66186622,121650.0,121640.0,0.20489593]
[1754885320219,1.66186622,121650.0,121640.0,0.20589593]
[1754885320810,1.66186622,121650.0,121640.0,0.20999593]
[1754885321217,1.24034622,121650.0,121640.0,0.20999593]
[1754885321411,2.02222622,121650.0,121640.0,0.20999593]
[1754885321617,2.02222622,121650.0,121640.0,0.40068404]
[1754885321818,1.24234622,121650.0,121640.0,0.31849114]
[1754885322120,2.02518622,121650.0,121640.0,0.29040484]
[1754885322318,1.24334622,121650.0,121640.0,0.29040484]
[1754885322524,2.02494622,121650.0,121640.0,0.76196484]
[1754885322726,2.02494622,121650.0,121640.0,0.57027673]
[1754885323126,2.02494622,121650.0,121640.0,0.0988]
[1754885323326,2.02294622,121650.0,121640.0,0.0988]
[1754885323527,2.02694622,121650.0,121640.0,0.0988]
[1754885323921,1.7600906,121650.0,121640.0,0.0988]
[1754885324223,0.9784906,121650.0,121640.0,0.73477372]
[1754885324424,0.4481006,121650.0,121640.0,0.73067372]
[1754885324722,0.8688206,121650.0,121640.0,1.59798666]
[1754885325134,1.29991409,121670.0,121660.0,0.2738138]
[1754885325331,1.66224971,121670.0,121660.0,0.47156]
[1754885325631,1.66224971,121670.0,121660.0,0.59479068]
[1754885325822,2.44364971,121670.0,121660.0,0.6769971]
[1754885326434,2.02304971,121670.0,121660.0,0.39812521]
[1754885326629,2.80422971,121670.0,121660.0,0.39812521]
[1754885326834,2.80414971,121670.0,121660.0,0.39812521]
[1754885327024,2.80426971,121670.0,121660.0,0.31591879]
[1754885327428,2.02314971,121670.0,121660.0,0.31591879]
[1754885327633,2.02314971,121670.0,121660.0,0.59579068]
[1754885327829,2.80418971,121670.0,121660.0,0.59579068]
[1754885328129,2.02314971,121670.0,121660.0,0.67798358]
[1754885328431,2.44438971,121670.0,121660.0,0.76017738]
[1754885328628,2.80522971,121670.0,121660.0,0.87007665]
[1754885329029,2.80522971,121670.0,121660.0,0.86907665]
[1754885329235,2.80422971,121670.0,121660.0,0.87207665]
[1754885329423,2.80422971,121670.0,121660.0,0.40051665]
[1754885329735,2.80422971,121670.0,121660.0,0.20642358]
[1754885329938,2.80422971,121670.0,121660.0,0.20942358]
[1754885330836,2.02314971,121670.0,121660.0,0.20942358]
[1754885331037,2.80402971,121670.0,121660.0,0.12723068]
[1754885331336,2.02314971,121670.0,121660.0,0.12523068]
[1754885331537,2.80386971,121670.0,121660.0,0.12523068]
[1754885331926,2.80382971,121670.0,121660.0,0.12423068]
[1754885332129,2.91427386,121670.0,121660.0,0.12323068]
[1754885332538,2.91627386,121670.0,121660.0,0.12323068]
[1754885333338,2.91591386,121670.0,121660.0,0.12733068]
[1754885333535,2.53961409,121670.0,121660.0,0.49638068]
[1754885333735,2.13559386,121670.0,121660.0,0.59889068]
[1754885333932,2.13559386,121670.0,121660.0,0.68108358]
[1754885334239,2.54025409,121670.0,121660.0,0.67698358]
[1754885335029,2.91655386,121670.0,121660.0,0.67698358]
[1754885338242,2.91555386,121670.0,121660.0,0.67698358]
[1754885338630,2.13459386,121670.0,121660.0,0.20542358]
[1754885338836,2.91287386,121670.0,121660.0,0.12323068]
[1754885339036,2.91287386,121670.0,121660.0,0.12423068]
[1754885339244,2.91287386,121670.0,121660.0,0.12833068]
[1754885340636,2.13259386,121670.0,121660.0,0.12833068]
[1754885340843,2.91355386,121670.0,121660.0,0.12833068]
[1754885341143,3.07793786,121670.0,121660.0,0.3204166]
[1754885341638,3.07793786,121670.0,121660.0,0.2397197]
[1754885341837,3.07793786,121670.0,121660.0,0.191093]
[1754885342144,3.07793786,121670.0,121660.0,0.20522747]
[1754885342442,3.07793786,121670.0,121660.0,0.12375947]
[1754885342642,2.91355386,121670.0,121660.0,0.12375947]
[1754885344150,2.91555386,121670.0,121660.0,0.12375947]
[1754885345346,2.13559386,121670.0,121660.0,0.12375947]
[1754885345646,2.91611386,121670.0,121660.0,0.12375947]
[1754885346245,2.91611386,121670.0,121660.0,0.12785947]
[1754885348346,2.91611386,121670.0,121660.0,0.31995094]
[1754885351245,2.13559386,121670.0,121660.0,0.31995094]
[1754885351445,2.91415386,121670.0,121660.0,0.31995094]
[1754885351748,2.91415386,121670.0,121660.0,0.53462094]
[1754885351948,2.91403386,121670.0,121660.0,0.53462094]
[1754885352247,2.80529978,121670.0,121660.0,0.53462094]
[1754885352841,2.80505978,121670.0,121660.0,0.53462094]
[1754885353041,2.80505978,121670.0,121660.0,0.34252947]
[1754885353243,2.02685978,121670.0,121660.0,0.34252947]
[1754885353747,2.80469978,121670.0,121660.0,0.60272947]
[1754885353942,2.80269978,121670.0,121660.0,0.60272947]
[1754885354140,2.53413409,121670.0,121660.0,0.28840947]
[1754885354344,2.80185978,121670.0,121660.0,0.68492237]
[1754885354844,1.93033978,121670.0,121660.0,0.68492237]
[1754885355044,2.80096978,121670.0,121660.0,0.68492237]
[1754885355247,2.80096978,121670.0,121660.0,0.76711867]
[1754885355448,2.80096978,121670.0,121660.0,0.68492237]
[1754885356950,2.80096978,121670.0,121660.0,0.68592237]
[1754885356951,2.80076978,121670.0,121660.0,0.68592237]
[1754885357849,1.75532409,121670.0,121660.0,0.68592237]
[1754885358151,2.80036978,121670.0,121660.0,0.68592237]
[1754885360542,2.80036978,121670.0,121660.0,0.68492237]
[1754885360745,2.80036978,121670.0,121660.0,0.68592237]
[1754885361143,2.80036978,121670.0,121660.0,0.68492237]
[1754885361344,2.80036978,121670.0,121660.0,0.68592237]
[1754885361849,2.80036978,121670.0,121660.0,0.68492237]
[1754885362157,2.02288978,121670.0,121660.0,0.68492237]
[1754885362360,2.53140409,121670.0,121660.0,0.68492237]
[1754885362562,2.79896978,121670.0,121660.0,0.68492237]
[1754885367060,1.66081409,121670.0,121660.0,1.22680472]
[1754885367261,2.43617409,121670.0,121660.0,0.95923903]
[1754885367650,2.07537409,121670.0,121660.0,0.95923903]
[1754885368354,2.07537409,121670.0,121660.0,0.76711867]
[1754885369057,2.16988409,121670.0,121660.0,0.76711867]
[1754885369456,1.39452409,121670.0,121660.0,0.76711867]
[1754885369661,2.43740978,121670.0,121660.0,0.76711867]
[1754885370163,2.43740978,121670.0,121660.0,0.76711877]
[1754885371359,2.43740978,121670.0,121660.0,0.37060237]
[1754885371564,2.79816978,121670.0,121660.0,0.58527237]
[1754885371964,2.79816978,121670.0,121660.0,0.65440237]
[1754885372167,2.79816978,121670.0,121660.0,0.87693654]
[1754885372667,2.79816978,121670.0,121660.0,0.40206654]
[1754885374065,2.02288978,121670.0,121660.0,0.40206654]
[1754885374265,2.79816978,121670.0,121660.0,0.56361654]
[1754885374467,2.79816978,121670.0,121660.0,0.84741654]
[1754885374665,2.79816978,121670.0,121660.0,0.87793654]
[1754885375167,2.79816978,121670.0,121660.0,0.95913294]
[1754885376078,2.43736978,121670.0,121660.0,0.95913294]
[1754885376273,2.79816978,121670.0,121660.0,0.95913294]
[1754885376469,2.16980409,121670.0,121660.0,0.95913294]
[1754885376669,2.43736978,121670.0,121660.0,0.95913294]
[1754885376872,2.79816978,121670.0,121660.0,0.76811877]
[1754885377269,2.02288978,121670.0,121660.0,0.76811877]
[1754885377470,2.79812978,121670.0,121660.0,0.76811877]
[1754885378277,2.79812978,121670.0,121660.0,0.68592237]
[1754885378872,2.02288978,121670.0,121660.0,0.48431877]
[1754885379073,2.79812978,121670.0,121660.0,0.76081877]
[1754885379273,2.79812978,121670.0,121660.0,0.95284097]
[1754885379978,2.53056409,121670.0,121660.0,0.95284097]
[1754885380272,2.43732978,121670.0,121660.0,0.76081877]
[1754885380577,2.79812978,121670.0,121660.0,0.76081877]
[1754885381674,2.43732978,121670.0,121660.0,0.76081877]
[1754885383681,1.39452409,121670.0,121660.0,0.76081877]
[1754885383981,2.16968409,121670.0,121660.0,0.76081877]
[1754885384181,2.16968409,121670.0,121660.0,0.76491877]
[1754885384778,2.43724978,121670.0,121660.0,0.76491877]
[1754885386174,1.66208978,121670.0,121660.0,0.76491877]
[1754885386375,2.43720978,121670.0,121660.0,0.76491877]
[1754885386885,2.43720978,121670.0,121660.0,0.68272237]
[1754885387185,2.16964409,121670.0,121660.0,0.68272237]
[1754885387381,2.43720978,121670.0,121660.0,0.68272237]
[1754885387982,1.03420409,121670.0,121660.0,0.68272237]
[1754885388183,1.03420409,121670.0,121660.0,0.76491877]
[1754885388184,1.30176978,121670.0,121660.0,0.76491877]
[1754885388688,1.30176978,121670.0,121660.0,0.68272237]
[1754885388884,1.66256978,121670.0,121660.0,0.21105237]
[1754885389090,1.73938978,121670.0,121660.0,0.21105237]
[1754885390290,1.74042978,121670.0,121660.0,0.21105237]
[1754885390489,0.96426978,121670.0,121660.0,0.21105237]
[1754885390690,1.74042978,121670.0,121660.0,0.21005237]
[1754885391891,0.96426978,121670.0,121660.0,0.21005237]
[1754885392085,0.1678131,121650.0,121640.0,0.19222361]
[1754885392292,1.57203879,121650.0,121640.0,0.04972327]
[1754885392590,1.57203879,121650.0,121640.0,0.2558718]
[1754885393496,1.57203879,121650.0,121640.0,0.54959304]
[1754885393996,1.3044731,121650.0,121640.0,0.54959304]
[1754885394192,0.5287131,121650.0,121640.0,1.05721294]
[1754885394390,1.57319879,121650.0,121640.0,1.05721294]
[1754885394889,1.57319879,121650.0,121640.0,0.97500304]
[1754885395092,0.79627879,121650.0,121640.0,0.97500304]
[1754885395594,0.79627879,121650.0,121640.0,0.6812818]
[1754885395595,1.57331879,121650.0,121640.0,0.6812818]
[1754885396092,0.79627879,121650.0,121640.0,0.7644916]
[1754885396297,1.57411879,121650.0,121640.0,0.7644916]
[1754885397698,0.79627879,121650.0,121640.0,0.7644916]
[1754885398094,1.2666831,121650.0,121640.0,0.7603916]
[1754885398696,1.3061131,121650.0,121640.0,0.7603916]
[1754885398891,0.9058831,121650.0,121640.0,1.1211916]
[1754885399098,0.8597031,121650.0,121640.0,1.1211916]
[1754885399299,0.0823031,121650.0,121640.0,1.1211916]
[1754885399506,0.8593431,121650.0,121640.0,1.38875729]
[1754885399799,0.77702,121650.0,121640.0,1.78960033]
[1754885400003,0.1643977,121660.0,121650.0,0.5531531]
[1754885400200,0.9413577,121660.0,121650.0,0.5531531]
[1754885400504,0.1643977,121660.0,121650.0,0.86899403]
[1754885400704,0.9422777,121660.0,121650.0,1.21876614]
[1754885400904,0.1643977,121660.0,121650.0,1.21876614]
[1754885401107,0.1644977,121660.0,121650.0,1.21876614]
[1754885401305,0.9432977,121660.0,121650.0,1.21876614]
[1754885401798,0.9432977,121660.0,121650.0,0.75910567]
[1754885402004,0.9453777,121660.0,121650.0,0.75910567]
[1754885403702,0.8631774,121660.0,121650.0,0.75910567]
[1754885403902,0.8637774,121660.0,121650.0,0.99553271]
[1754885404199,1.13576,121680.0,121660.0,0.6353421]
[1754885404405,1.2179435,121680.0,121670.0,1.18150529]
[1754885404599,1.9994235,121680.0,121670.0,0.9139396]
[1754885404800,1.9994235,121680.0,121670.0,1.30446617]
[1754885404995,1.9994235,121680.0,121670.0,1.11910014]
[1754885405598,1.9994235,121680.0,121670.0,1.12010014]
[1754885405805,1.9995235,121680.0,121670.0,1.12010014]
[1754885406602,1.9995235,121680.0,121670.0,1.31218969]
[1754885407103,2.0389535,121680.0,121670.0,1.31218969]
[1754885407404,2.66687919,121680.0,121670.0,0.95138969]
[1754885407596,1.88583919,121680.0,121670.0,0.94797969]
[1754885407801,1.88592919,121680.0,121670.0,0.75589014]
[1754885408001,2.66684919,121680.0,121670.0,0.75589014]
[1754885408811,2.66684919,121680.0,121670.0,0.75489014]
[1754885408998,2.66684919,121680.0,121670.0,0.94797969]
[1754885409603,2.66684919,121680.0,121670.0,0.95207969]
[1754885410807,2.66684919,121680.0,121670.0,0.95107969]
[1754885411407,2.66684919,121680.0,121670.0,0.87793969]
[1754885412296,1.6183635,121680.0,121670.0,0.95107969]
[1754885412500,2.66587919,121680.0,121670.0,0.95107969]
[1754885412701,2.66587919,121680.0,121670.0,0.75899014]
[1754885412702,2.3981535,121680.0,121670.0,0.75899014]
[1754885413103,1.2574735,121680.0,121670.0,1.11979014]
[1754885413505,2.0375135,121680.0,121670.0,1.11979014]
[1754885414299,2.0375135,121680.0,121670.0,1.03560054]
[1754885414506,1.2574735,121680.0,121670.0,1.03660054]
[1754885414709,1.2574735,121680.0,121670.0,0.81205054]
[1754885414710,1.52512919,121680.0,121670.0,0.81205054]
[1754885415007,2.66688919,121680.0,121670.0,0.60466054]
[1754885415207,2.3993235,121680.0,121670.0,0.60466054]
[1754885415406,2.66688919,121680.0,121670.0,0.79642233]
[1754885415610,1.88592919,121680.0,121670.0,0.79642233]
[1754885415808,2.66728919,121680.0,121670.0,0.79642233]
[1754885417609,1.88592919,121680.0,121670.0,0.45466233]
[1754885417804,2.93481488,121680.0,121670.0,0.40402233]
[1754885418121,2.93481488,121680.0,121670.0,0.40502233]
[1754885418507,2.66732919,121680.0,121670.0,0.40502233]
[1754885418704,2.66732919,121680.0,121670.0,0.40402233]
[1754885418905,2.66732919,121680.0,121670.0,0.40202233]
[1754885419610,2.15349488,121680.0,121670.0,0.40202233]
[1754885419808,2.15349488,121680.0,121670.0,0.36250233]
[1754885420104,2.15349488,121680.0,121670.0,0.28030267]
[1754885420410,1.99462336,121680.0,121670.0,0.27930267]
[1754885420712,2.77602336,121680.0,121670.0,0.27930267]
[1754885421506,2.77690336,121680.0,121670.0,0.08754088]
[1754885421710,2.77762336,121680.0,121670.0,0.08754088]
[1754885421911,2.77762336,121680.0,121670.0,0.08344088]
[1754885423008,1.99662336,121680.0,121670.0,0.08344088]
[1754885423209,1.99662336,121680.0,121670.0,0.27521299]
[1754885423210,2.77786336,121680.0,121670.0,0.27521299]
[1754885423404,1.99662336,121680.0,121670.0,0.27521299]
[1754885423810,2.77810336,121680.0,121670.0,0.27521299]
[1754885424210,2.77810336,121680.0,121670.0,0.32323299]
[1754885424411,2.77810336,121680.0,121670.0,0.13146088]
[1754885424710,2.4018435,121680.0,121670.0,0.08344088]
[1754885425214,2.77782336,121680.0,121670.0,0.08344088]
[1754885425415,2.4015635,121680.0,121670.0,0.08344088]
[1754885425816,2.77782336,121680.0,121670.0,0.08344088]
[1754885426916,2.78106336,121680.0,121670.0,0.08754088]
[1754885427114,1.99662336,121680.0,121670.0,0.02773738]
[1754885427306,2.78338336,121680.0,121670.0,8e-08]
[1754885427505,3.15964322,121680.0,121670.0,8e-08]
[1754885427707,2.4071235,121680.0,121670.0,8e-08]
[1754885427909,0.0821944,121660.0,121650.0,0.04802]
[1754885428113,1.60619426,121660.0,121650.0,0.04802]
[1754885428416,1.60619426,121660.0,121650.0,0.25319219]
[1754885429217,1.2299344,121660.0,121650.0,0.25319219]
[1754885429416,1.96699426,121660.0,121650.0,0.25319219]
[1754885429809,1.18015426,121660.0,121650.0,0.20917219]
[1754885430008,1.96847426,121660.0,121650.0,0.20917219]
[1754885430419,1.96847426,121660.0,121650.0,0.21017219]
[1754885430916,1.96851426,121660.0,121650.0,0.25819219]
[1754885431310,1.96851426,121660.0,121650.0,0.25719219]
[1754885432707,1.5922544,121660.0,121650.0,0.25719219]
[1754885433018,1.96851426,121660.0,121650.0,0.25719219]
[1754885434719,1.96851426,121660.0,121650.0,0.66665219]
[1754885435324,1.5910544,121660.0,121650.0,0.66665219]
[1754885435620,1.96731426,121660.0,121650.0,0.66665219]
[1754885436918,1.96731426,121660.0,121650.0,0.90285233]
[1754885438215,1.18015426,121660.0,121650.0,0.90385233]
[1754885438521,1.96679426,121660.0,121650.0,0.90385233]
[1754885438918,1.96679426,121660.0,121650.0,0.67256219]
[1754885439325,1.96679426,121660.0,121650.0,0.90873884]
[1754885440719,1.96679426,121660.0,121650.0,0.90773884]
[1754885440919,1.5905344,121660.0,121650.0,0.90773884]
[1754885441120,1.96679426,121660.0,121650.0,0.90773884]
[1754885441424,1.96679426,121660.0,121650.0,0.90873884]
[1754885442225,1.85811101,121660.0,121650.0,0.90873884]
[1754885443426,1.85811101,121660.0,121650.0,0.86446195]
[1754885444426,1.85703101,121660.0,121650.0,0.86446195]
[1754885444625,0.8038944,121660.0,121650.0,0.86446195]
[1754885444926,1.5886544,121660.0,121650.0,0.86446195]
[1754885445325,1.5888144,121660.0,121650.0,0.86446195]
[1754885445724,1.85639101,121660.0,121650.0,0.86446195]
[1754885446225,1.07147101,121660.0,121650.0,0.86446195]
[1754885446425,1.85595101,121660.0,121650.0,0.86446195]
[1754885447026,1.85595101,121660.0,121650.0,0.67256219]
[1754885449722,1.85531101,121660.0,121650.0,0.67256219]
[1754885451333,0.8038944,121660.0,121650.0,0.67256219]
[1754885451529,1.07147101,121660.0,121650.0,0.67256219]
[1754885451737,1.13811101,121660.0,121650.0,0.86448808]
[1754885452736,0.8701744,121660.0,121650.0,0.86448808]
[1754885452935,0.8701744,121660.0,121650.0,0.67256219]
[1754885453336,1.13775101,121660.0,121650.0,0.67256219]
[1754885454641,0.34987101,121660.0,121650.0,0.67256219]
[1754885454936,1.13775101,121660.0,121650.0,0.67256219]
[1754885456439,0.8701744,121660.0,121650.0,0.67256219]
[1754885456637,1.13695101,121660.0,121650.0,0.67256219]
[1754885457030,0.34987101,121660.0,121650.0,0.59858219]
[1754885457236,0.71067101,121660.0,121650.0,0.25819219]
[1754885457431,0.71067101,121660.0,121650.0,0.14562739]
[1754885457638,1.49687101,121660.0,121650.0,0.09210519]
[1754885457838,1.49687101,121660.0,121650.0,0.06304449]
[1754885458033,1.49687101,121660.0,121650.0,0.23349882]
[1754885458238,0.71067101,121660.0,121650.0,0.23349882]
[1754885458439,1.49695101,121660.0,121650.0,0.23249882]
[1754885458641,1.49695101,121660.0,121650.0,0.23349882]
[1754885459141,1.49695101,121660.0,121650.0,0.23249882]
[1754885460535,0.4430944,121660.0,121650.0,0.23249882]
[1754885460736,1.49619101,121660.0,121650.0,0.23249882]
[1754885461734,1.49635101,121660.0,121650.0,0.23249882]
[1754885461943,0.71067101,121660.0,121650.0,0.23249882]
[1754885462139,1.49635101,121660.0,121650.0,0.23249882]
[1754885462335,1.49635101,121660.0,121650.0,0.18143882]
[1754885462539,0.71067101,121660.0,121650.0,0.04423503]
[1754885462837,0.4430944,121660.0,121650.0,0.04706003]
[1754885463046,1.2299744,121660.0,121650.0,0.17009914]
[1754885463246,1.51874101,121660.0,121650.0,0.14890484]
[1754885463442,0.76362101,121660.0,121650.0,0.2503169]
[1754885463743,1.55574101,121660.0,121650.0,0.152195]
[1754885463942,0.76362101,121660.0,121650.0,0.19685051]
[1754885464248,1.55590101,121660.0,121650.0,0.19685051]
[1754885464450,1.55690101,121660.0,121650.0,0.19685051]
[1754885464850,1.55690101,121660.0,121650.0,0.12268391]
[1754885465352,1.55690101,121660.0,121650.0,0.09605721]
[1754885465847,1.55690101,121660.0,121650.0,0.02556921]
[1754885466044,1.55982101,121660.0,121650.0,1e-08]
[1754885466243,1.55982101,121660.0,121650.0,0.00410001]
[1754885466450,1.55982101,121660.0,121650.0,1e-08]
[1754885466747,1.55970101,121660.0,121650.0,0.12297034]
[1754885470650,1.55970101,121660.0,121650.0,0.09416754]
[1754885470844,1.55970101,121660.0,121650.0,0.01621674]
[1754885471047,1.55970101,121660.0,121650.0,4e-08]
[1754885472942,0.76562101,121660.0,121650.0,4e-08]
[1754885473141,1.55922101,121660.0,121650.0,4e-08]
[1754885476655,0.1577389,121650.0,121640.0,0.20625136]
[1754885476953,1.84571212,121650.0,121640.0,0.122553]
[1754885477149,1.84571212,121650.0,121640.0,1e-07]
[1754885477848,1.84603212,121650.0,121640.0,1e-07]
[1754885478052,1.3108789,121650.0,121640.0,4e-08]
[1754885478445,0.58445393,121650.0,121640.0,4e-08]
[1754885478850,1.37629393,121650.0,121640.0,4e-08]
[1754885479058,1.64387054,121650.0,121640.0,4e-08]
[1754885479356,1.37629393,121650.0,121640.0,0.01662522]
[1754885479550,1.37629393,121650.0,121640.0,2e-08]
[1754885479855,1.37629393,121650.0,121640.0,0.04633002]
[1754885480058,0.58445393,121650.0,121640.0,0.01648452]
[1754885480354,0.1577457,121640.0,121630.0,0.39872]
[1754885480541,1.53405231,121640.0,121630.0,0.39880263]
[1754885480746,1.53405231,121640.0,121630.0,0.5222789]
[1754885480943,1.53405231,121640.0,121630.0,0.60448532]
[1754885481357,1.57910231,121640.0,121630.0,0.60448532]
[1754885481552,1.3115257,121640.0,121630.0,0.60448532]
[1754885481755,1.57910231,121640.0,121630.0,0.60448532]
[1754885482258,1.57910231,121640.0,121630.0,0.65181532]
[1754885482454,1.57910231,121640.0,121630.0,0.65481532]
[1754885484057,1.57910231,121640.0,121630.0,0.65381532]
[1754885484357,1.57910231,121640.0,121630.0,0.65481532]
[1754885485261,1.57910231,121640.0,121630.0,0.65181532]
[1754885485462,1.3115257,121640.0,121630.0,0.65481532]
[1754885485660,1.57910231,121640.0,121630.0,0.65481532]
[1754885485961,1.57910231,121640.0,121630.0,0.65281532]
[1754885488359,1.57910231,121640.0,121630.0,0.65181532]
[1754885492160,0.78622231,121640.0,121630.0,0.65591532]
[1754885492562,1.57734231,121640.0,121630.0,0.65591532]
[1754885492757,1.3097657,121640.0,121630.0,0.65591532]
[1754885492963,1.57734231,121640.0,121630.0,0.65591532]
[1754885495057,1.57734231,121640.0,121630.0,0.39089532]
[1754885495264,0.78622231,121640.0,121630.0,0.58824532]